Cogmind - Beta 14 @@@ ROGUE MODE // 2024.12.22 @ 14:41:16 Player: Dosh Result: Destroyed by Y-72 Warden with Quantum Rifle Performance ------------- Evolutions (9) 4500 Regions Visited (20) 4000 Robots Destroyed (341) 1705 Value Destroyed (13447) 13447 Prototype IDs (38) 760 Alien Tech Used (2) 400 Bonus (4179) 4179 TOTAL SCORE: 28991 Bonus ------- High Alert Combat Kills 2818 Follower Combat Kills 194 Entered Garrisons 200 Used RIF Installer 500 Registered with UFD 300 Met Zhirov 300 Friendly Fire -133 Cogmind --------- Core Integrity 0/1600 Matter 295/300 Energy 100/100 System Corruption 23% Temperature Cool (9) Movement Core (50) Location -1/Command Parts ------- > --- POWER (3) -------- (None) > --- PROPULSION (7) --- (None) > --- UTILITY (11) ----- Advanced Target Analyzer > --- WEAPON (4) ------- Power Sword > --- INVENTORY (5) ---- Reinforced Antimatter Reactor Myomer Leg Advanced Force Field Enhanced Nova Cannon Enhanced Nova Cannon Peak State ------------ > --- POWER ------------ Reinforced Antimatter Reactor Quantum Reactor Light Quantum Reactor > --- PROPULSION ------- Myomer Leg Advanced Myomer Leg Experimental Flexi-carbon Leg Experimental Flexi-carbon Leg Experimental Flexi-carbon Leg Biometal Leg Centrium Leg > --- UTILITY ---------- Advanced Cooling System Advanced Coolant Injector Huge Storage Unit Advanced Targeting Computer Quantum Capacitor Advanced Transmission Jammer Advanced Phase Shifter Graphene Brace Advanced Force Field > --- WEAPON ----------- Enhanced Nova Cannon Mini Smartbomb Launcher Plasma Sword > --- INVENTORY -------- Reinforced Fission Core Light Antimatter Reactor Light Antimatter Reactor Light Antimatter Reactor Flexi-carbon Leg Myomer Leg Advanced Myomer Leg Experimental Flexi-carbon Leg Biometal Leg Advanced Cooling System Advanced Energy Well Matter Compressor Advanced Sensor Array Advanced Force Field Advanced Force Field Advanced Hacking Suite System Shield Authchip [R/NC] High-powered Tractor Beam Advanced Drone Bay Wave Gun Disruptor Cannon KE Penetrator Rocket Array [Rating: 181] Favorites ----------- Power Mini Fusion Reactor Engine Deuterium Engine Power Core Enhanced Nuclear Core Reactor Mini Fusion Reactor Propulsion Medium Treads Treads Medium Treads Leg Advanced Myomer Leg Wheel Armored Huge Wheel Hover Unit Hover Unit Flight Unit Xenon Bombardment Thruster Utility Core Analyzer Device Experimental Heat Sink Storage Large Storage Unit Processor Core Analyzer Hackware Hacking Suite Protection Improved Medium Armor Plating Weapon Cooled Particle Cannon Energy Gun Cooled Pulse Rifle Energy Cannon Cooled Particle Cannon Ballistic Gun KE Penetrator Ballistic Cannon Advanced Assault Cannon Launcher Mini Smartbomb Launcher Impact Weapon Hammer Slashing Weapon Plasma Sword Build | -11 -10 -10 -8 -7 -7 -7 -7 -5 -5 -5 -5 -5 -5 -4 -4 -3 -2 -2 -1 -1 ------- Run | Yrd Mat Sub Mat Fac Sto Rec Scr Fac Was Fac Upp Upp Zhi Pro Fac Res Res Gar Acc Com Slots Evolved 18 | . . . 4 2 . . . 4 . . . . . . 2 2 2 . 2 . Power 2 | . . . . . . . . 1 . . . . . . . . 1 . . . Propulsion 5 | . . . 1 . . . . 1 . . . . . . 2 . . . 1 . Utility 9 | . . . 3 1 . . . 2 . . . . . . . 1 1 . 1 . Weapon 2 | . . . . 1 . . . . . . . . . . . 1 . . . . Parts Attached 315 | 6 12 . 36 38 22 6 . 19 5 34 1 8 6 23 12 1 3 33 41 9 Power 38 | 1 . . 4 1 2 1 . 3 . 2 . . . 2 1 . 1 5 14 1 Engine 8 | 1 . . 3 . . . . 1 . 2 . . . 1 . . . . . . Core 11 | . . . 1 1 1 . . 2 . . . . . 1 1 . 1 3 . . Reactor 19 | . . . . . 1 1 . . . . . . . . . . . 2 14 1 Propulsion 76 | 2 3 . 11 11 5 1 . 6 2 6 . . 1 2 4 . . 6 10 6 Treads 44 | 2 1 . 9 11 5 1 . 5 2 6 . . . . 1 . . . 1 . Leg 22 | . . . 1 . . . . . . . . . 1 2 3 . . 6 9 . Wheel 3 | . 1 . 1 . . . . 1 . . . . . . . . . . . . Hover 5 | . 1 . . . . . . . . . . . . . . . . . . 4 Flight 2 | . . . . . . . . . . . . . . . . . . . . 2 Utility 96 | 1 1 . 14 14 5 2 . 7 . 12 1 2 2 6 3 . 2 11 12 1 Device 53 | . . . 3 8 2 . . 5 . 6 1 2 1 5 1 . 1 9 9 . Storage 6 | 1 1 . 1 . . 2 . 1 . . . . . . . . . . . . Processor 10 | . . . 4 1 1 . . . . 1 . . 1 . 1 . . . . 1 Hackware 6 | . . . 1 1 . . . . . 2 . . . . . . . . 2 . Protection 21 | . . . 5 4 2 . . 1 . 3 . . . 1 1 . 1 2 1 . Artifact . | . . . . . . . . . . . . . . . . . . . . . Weapon 105 | 2 8 . 7 12 10 2 . 3 3 14 . 6 3 13 4 1 . 11 5 1 Energy Gun 13 | 1 . . . . 1 1 . 1 . 2 . 1 1 2 1 . . 2 . . Energy Cannon 42 | . . . . 5 7 1 . 1 1 9 . 3 2 5 1 . . 5 2 . Ballistic Gun 18 | 1 7 . 4 1 . . . . . . . . . . 2 . . 3 . . Ballistic Cannon 4 | . . . . 4 . . . . . . . . . . . . . . . . Launcher 20 | . 1 . 2 1 2 . . . 2 3 . 2 . 4 . . . 1 2 . Special Weapon . | . . . . . . . . . . . . . . . . . . . . . Impact Weapon 2 | . . . 1 1 . . . . . . . . . . . . . . . . Slashing Weapon 6 | . . . . . . . . 1 . . . . . 2 . 1 . . 1 1 Piercing Weapon . | . . . . . . . . . . . . . . . . . . . . . Special Melee Weapon . | . . . . . . . . . . . . . . . . . . . . . Unidentified Prototypes 16 | . . . . 3 3 1 . 3 . . . . 2 2 . . . . 2 . Corrupted Parts 17 | . . . 1 . . . . . . 1 . . . 2 . . . 10 3 . System Corruption 76 | . . . 2 . . . . . . 3 . . . 7 . . . 55 9 . Parts Lost 108 | . 5 . 10 3 9 3 . 4 . 12 . 1 . 4 3 . . 19 24 11 Power 14 | . . . . . 1 . . . . 1 . . . 2 1 . . 4 4 1 Propulsion 31 | . 3 . 3 . 2 1 . . . 2 . 1 . . . . . 3 8 8 Utility 42 | . . . 6 3 4 . . 3 . 5 . . . 1 . . . 9 9 2 Weapon 21 | . 2 . 1 . 2 2 . 1 . 4 . . . 1 2 . . 3 3 . Highest Loss Streak 11 | . 2 . 5 1 5 3 . 1 . 7 . 1 . 2 2 . . 8 11 9 To Critical Strikes 1 | . . . . . . . . . . 1 . . . . . . . . . . Average Slot Usage (%) 89 | . 79 81 85 99 97 94 92 90 87 88 94 91 73 93 98 91 91 92 77 18 Engine 4 | . 14 14 6 5 . . . 1 . 2 5 5 5 5 4 . . . . . Core 2 | . . . 2 1 5 . . 3 5 2 . . . 4 5 9 13 7 . . Reactor 2 | . . . . . 1 7 7 5 5 5 5 5 5 . . . . 3 10 . Treads 15 | . 17 . 14 22 23 22 23 16 13 15 23 21 17 13 2 . . . . 3 Leg 4 | . . . 1 . . . . . . . . . 2 8 26 28 26 24 24 1 Device 14 | . . . 10 16 16 9 7 15 24 21 17 17 14 18 21 19 17 22 22 . Storage 6 | . 14 10 7 7 7 7 7 5 5 5 5 5 5 5 5 4 4 4 3 . Processor 8 | . . . 11 7 13 15 15 7 5 8 11 11 13 11 10 9 8 6 4 5 Protection 5 | . . . 9 12 4 7 7 9 5 3 5 5 5 4 5 4 4 4 . . Energy Gun 2 | . . . . . . 4 7 6 11 6 5 4 . 3 . . . 2 . . Energy Cannon 7 | . . . . 10 22 18 15 9 1 8 11 10 . 7 6 4 4 4 3 . Ballistic Gun 5 | . 27 28 12 . . . . . . . . . . . 7 9 8 7 1 . Ballistic Cannon 1 | . . . . 11 . . . . . . . . . . . . . . . . Peak Build Rating 181 | 6 7 7 26 55 61 63 53 99 100 106 103 104 109 109 124 131 145 169 181 56 Average Rating 70 | 4 6 6 20 44 53 54 51 79 97 98 103 102 88 103 119 125 137 149 149 37 On Entrance 73 | . 6 7 5 25 54 61 51 53 99 99 103 103 99 109 104 124 131 145 127 45 Naked Turns . | . . . . . . . . . . . . . . . . . . . . . Heaviest Build 194 | 13 33 27 44 66 63 58 55 134 133 148 147 152 147 147 136 139 155 194 192 15 Greatest Support 196 | 40 40 10 60 84 84 76 68 104 140 140 110 110 82 90 160 160 160 171 196 36 Greatest Overweight (x) 14 | . 8 2 14 2 . 1 . 4 4 2 1 1 4 4 1 . . 1 1 4 Average Overweight (x) . | . . 1 . . . . . 2 1 . 1 1 2 1 . . . . . . Largest Inventory Capacity 25 | 8 15 15 15 15 15 15 15 25 25 25 25 25 25 25 25 25 25 25 25 5 Average Capacity 19 | 7 13 12 13 15 15 15 15 23 25 25 25 25 25 25 25 25 25 25 23 5 Most Carried 25 | 1 10 8 15 15 15 15 15 25 25 25 24 25 25 24 25 23 22 25 25 5 Average Carried 16 | . 7 7 9 14 13 12 12 20 24 23 24 24 24 22 23 22 21 22 20 5 Final Capacity 25 | 8 15 5 15 15 15 15 15 25 25 25 25 25 25 25 25 25 25 25 5 5 Final Carried 25 | 1 8 5 15 15 14 12 15 25 22 24 24 24 24 21 23 23 20 24 5 5 Class Distribution -------------------- 23% | Mutant 18% | Scavenger-Gunner 14% | Gunner 12% | Scavenger-Tank 10% | Tank 10% | Scavenger-Mutant 8% | Commander-Gunner Dominant Class ---------------- Mutant | -10/Materials Mutant | -10/Subcaves Scavenger-Mutant | -8/Materials Tank | -7/Factory Gunner | -7/Storage Commander-Gunner | -7/Recycling Commander-Gunner | -7/Scraptown Gunner | -5/Factory Scavenger-Tank | -5/Waste Scavenger-Gunner | -5/Factory Scavenger-Gunner | -5/Upper Caves Scavenger-Gunner | -5/Upper Caves Mutant | -5/Zhirov Scavenger-Gunner | -4/Proximity Caves Gunner | -4/Factory Scavenger-Skirmisher | -3/Research Scavenger-Skirmisher | -2/Research Scavenger-Tank | -2/Garrison Scavenger-Mutant | -1/Access Mutant | -1/Command Resources | -11 -10 -10 -8 -7 -7 -7 -7 -5 -5 -5 -5 -5 -5 -4 -4 -3 -2 -2 -1 -1 ----------- Run | Yrd Mat Sub Mat Fac Sto Rec Scr Fac Was Fac Upp Upp Zhi Pro Fac Res Res Gar Acc Com Matter Collected 7506 | 159 653 10 1001 911 300 107 . 449 337 474 97 284 . 546 357 . . 629 1069 123 Remotely 152 | . . . . 152 . . . . . . . . . . . . . . . . Salvage Created 16254 | . 801 . 1605 1779 1824 541 . 1132 1339 2163 . 245 . 567 1148 . . 805 1934 371 Parts 708 | . 55 . 83 55 82 18 . 54 9 85 . 11 . 22 48 . . 48 120 18 Haulers Intercepted 27 | . 2 . 5 6 4 . . 4 . 3 . . . . 2 . . . 1 . Recyclers Shooed 14 | . 1 . 1 4 2 1 . 4 . 1 . . . . . . . . . . Parts Field Recycled . | . . . . . . . . . . . . . . . . . . . . . Retrieved Matter . | . . . . . . . . . . . . . . . . . . . . . Parts Self-Destructed 19 | . . . . . . . . . . . . 6 . 13 . . . . . . Prevented 8 | . . . . . . . . . . . . . . 8 . . . . . . Kills | -11 -10 -10 -8 -7 -7 -7 -7 -5 -5 -5 -5 -5 -5 -4 -4 -3 -2 -2 -1 -1 ------- Run | Yrd Mat Sub Mat Fac Sto Rec Scr Fac Was Fac Upp Upp Zhi Pro Fac Res Res Gar Acc Com Combat Hostiles Destroyed 258 | . 19 . 27 27 29 8 . 7 6 36 . 9 . 11 9 . . 16 48 6 Melee 13 | . . . 7 . . . . . . . . . . . . . . . . 6 Guns 57 | . 16 . 13 . 1 2 . 2 2 11 . . . . 5 . . 4 1 . Cannons 90 | . . . . 24 17 5 . 5 . 13 . . . 6 3 . . 2 15 . AOE 82 | . 3 . 2 1 11 . . . 4 8 . 9 . 4 . . . 9 31 . Classes Destroyed 20 | . 7 . 5 2 . . . . 1 1 . . . 2 . . . 2 . . Worker 22 | . 2 . 6 3 3 . . . . 1 . . . . . . . . 7 . Builder 14 | . . . 2 1 2 1 . 3 . 3 . . . . 1 . . . 1 . Hauler 27 | . 2 . 5 6 4 . . 4 . 3 . . . . 2 . . . 1 . Recycler 16 | . 1 . 2 4 3 1 . 2 . . . . . . 1 . . . 1 1 Mechanic 4 | . . . 1 . 2 . . . . 1 . . . . . . . . . . Operator 6 | . 1 . 1 . . . . 1 . 2 . . . . 1 . . . . . Watcher 7 | . 2 . 1 1 . . . 2 . . . . . . . . . . 1 . Swarmer 74 | . 8 . 7 4 . . . . . . . 9 . 4 1 . . 4 33 4 Cutter 4 | . . . . . . . . . . . . . . . . . . 4 . . Grunt 83 | . 11 . 12 14 15 . . 1 . 19 . . . 1 2 . . 5 3 . Brawler 4 | . . . . 1 1 . . . . 2 . . . . . . . . . . Duelist 4 | . . . 1 . 1 . . . . 2 . . . . . . . . . . Protector 1 | . . . . . . . . . . . . . . 1 . . . . . . Sentry 29 | . . . 5 5 9 5 . . . 2 . . . 1 2 . . . . . Demolisher 2 | . . . . . . . . . . . . . . 2 . . . . . . Hunter 18 | . . . 2 1 . 1 . 4 . 2 . . . 2 2 . . 2 2 . Programmer 30 | . . . . 2 2 2 . 2 . 8 . . . . 2 . . . 10 2 Heavy 1 | . . . . . . . . . . 1 . . . . . . . . . . Behemoth 1 | . . . . . . . . . . . . . . . . . . 1 . . Compactor 6 | . . . . . . . . . 6 . . . . . . . . . . . Best Kill Streak 16 | . 6 . 9 5 16 6 . 6 2 12 . 5 . 4 3 . . 5 16 5 Combat Bots Only 12 | . 3 . 5 4 9 6 . 4 2 9 . 5 . 4 3 . . 5 12 5 Max Kills in Single Turn 7 | . 2 . 2 2 7 1 . 2 1 2 . 3 . 2 1 . . 3 7 1 Gunslinging 1 | . . . 1 . . . . . . . . . . . . . . . . . Exploded 5 | . 2 . 1 1 3 . . . 1 2 . 3 . 2 . . . 3 5 . Melee 1 | . . . 1 . . . . . . . . . . . . . . . . 1 Uniques/NPCs Destroyed 1 | . . . . . 1 . . . . . . . . . . . . . . . 01-MTF (-7/Storage) Combat | -11 -10 -10 -8 -7 -7 -7 -7 -5 -5 -5 -5 -5 -5 -4 -4 -3 -2 -2 -1 -1 -------- Run | Yrd Mat Sub Mat Fac Sto Rec Scr Fac Was Fac Upp Upp Zhi Pro Fac Res Res Gar Acc Com Hostile Shots Fired 1962 | . 130 3 172 242 286 121 . 33 1 180 . 45 . 70 82 . . 181 316 100 Missed 672 | . 39 2 47 87 106 52 . 8 . 38 . 11 . 18 47 . . 53 130 34 Intercepted 1 | . . . . . . . . . . . . . . 1 . . . . . . Damage Taken 21978 | . 1016 20 1796 1052 2209 624 . 488 173 2837 . 591 . 1385 699 . . 3625 3892 1571 Core 3900 | . 185 . 416 138 112 88 . 45 15 256 . 40 . 207 55 . . 875 812 656 Absorbed by Shields 3252 | . . . 123 382 147 . . 5 156 323 . . . . . . . 882 1234 . Reduced by Siege Mode 184 | . . . . . . . . . . 184 . . . . . . . . . . Ignored by Resistances 262 | . . . 104 . . . . . . 158 . . . . . . . . . . Regen/Repaired (Parts) 17 | . . . 17 . . . . . . . . . . . . . . . . . Core Remaining (%) 59 | 100 . 26 24 . . . 51 . . . . . . 43 95 100 . 39 . . Volleys Fired 712 | . 98 . 86 69 66 15 . 31 17 89 3 16 . 53 43 3 . 41 82 . Largest 4 | . 2 . 2 3 3 3 . 3 3 3 3 3 . 3 3 3 . 4 2 . Hottest 270 | . 40 . 55 240 270 90 . 250 165 269 269 269 . 269 204 141 . 270 146 . Shots Fired 1632 | . 185 . 169 194 179 44 . 93 44 223 12 37 . 133 119 9 . 105 86 . Gun 703 | . 183 . 162 . 1 5 . 43 29 93 3 11 . 39 76 6 . 50 2 . Cannon 856 | . . . . 194 173 39 . 50 . 119 9 21 . 91 43 3 . 47 67 . Launcher 73 | . 2 . 7 . 5 . . . 15 11 . 5 . 3 . . . 8 17 . Special . | . . . . . . . . . . . . . . . . . . . . . Kinetic 521 | . 183 . 162 67 . . . . . . . . . . 72 6 . 29 2 . Thermal 959 | . . . . 127 174 44 . 93 29 212 12 32 . 105 34 . . 30 67 . Explosive 73 | . 2 . 7 . 5 . . . 15 11 . 5 . 3 . . . 8 17 . Electromagnetic 79 | . . . . . . . . . . . . . . 25 13 3 . 38 . . Robot Hit Streak 35 | . 14 . 19 14 14 22 . 25 15 35 . 6 . 17 25 . . 14 12 . Robot Miss Streak 5 | . 4 . 4 3 4 3 . 4 3 3 . 3 . 4 5 . . 3 4 . Penetration Max 1 | . . . . . . . . . . . . . . . 1 . . . . . Secondary Targets 4 | . 3 . 1 . . . . . . . . . . . . . . . . . Max Gunslinging Chain 1 | . 1 . 1 . . . . . . . . . . . . . . . . . Capacitor 74 | . . . . . . . . . . . . . . . . . . 9 65 . Shots Hit Robots 1080 | . 113 . 150 115 111 30 . 58 39 146 . 16 . 71 79 . . 76 55 21 Core Hits 644 | . 45 . 55 54 103 13 . 34 24 107 . 11 . 33 30 . . 42 86 7 Critical Kills 9 | . 1 . 2 1 . 1 . . . . . . . . 1 . . 1 2 . Critical Parts Destroyed 11 | . 1 . 9 . . . . . . . . . . . 1 . . . . . Critical Strikes 31 | . 2 . 11 3 . 1 . 1 . 1 . . . 2 3 . . 1 2 4 Burn 5 | . . . . . . . . 1 . 1 . . . 2 1 . . . . . Meltdown 3 | . . . . 1 . 1 . . . . . . . . . . . . 1 . Destroy 7 | . 2 . 1 . . . . . . . . . . . 2 . . 1 1 . Blast 2 | . . . . 2 . . . . . . . . . . . . . . . . Smash 10 | . . . 10 . . . . . . . . . . . . . . . . . Sever 4 | . . . . . . . . . . . . . . . . . . . . 4 Melee Attacks 105 | . . . 63 3 . . . . . . . . . 1 . 2 . . . 36 Impact 66 | . . . 63 3 . . . . . . . . . . . . . . . . Slashing 39 | . . . . . . . . . . . . . . 1 . 2 . . . 36 Piercing . | . . . . . . . . . . . . . . . . . . . . . Sneak Attacks 11 | . . . 7 3 . . . . . . . . . . . . . . . 1 Combat Hostiles . | . . . . . . . . . . . . . . . . . . . . . Follow-up Attacks . | . . . . . . . . . . . . . . . . . . . . . Damage Inflicted 42092 | . 1483 . 3572 3566 4630 892 . 1837 4015 5846 . 1276 . 2350 2099 . . 3144 6478 904 Guns 9280 | . 1345 . 1772 . 18 80 . 772 809 1793 . 144 . 460 1204 . . 829 54 . Cannons 15302 | . . . . 3119 2901 777 . 1009 . 2206 . 289 . 1306 863 . . 732 2100 . Explosions 14685 | . 138 . 388 178 1707 . . . 3206 1835 . 843 . 584 32 . . 1583 4191 . Melee 2476 | . . . 1392 180 . . . . . . . . . . . . . . . 904 Ramming 349 | . . . 20 89 4 35 . 56 . 12 . . . . . . . . 133 . Kinetic 5761 | . 1345 . 1772 1023 . . . . . . . . . . 1095 . . 472 54 . Thermal 18032 | . . . . 2274 2919 857 . 1781 809 4145 . 433 . 1535 699 . . 480 2100 . Explosive 14329 | . 138 . 388 . 1707 . . . 3206 1689 . 843 . 584 . . . 1583 4191 . Electromagnetic 1145 | . . . . . . . . . . . . . . 231 305 . . 609 . . Impact 1572 | . . . 1392 180 . . . . . . . . . . . . . . . . Slashing 904 | . . . . . . . . . . . . . . . . . . . . 904 Piercing . | . . . . . . . . . . . . . . . . . . . . . Highest Corruption 55 | . . . 10 3 13 14 . 6 13 26 26 26 26 33 2 . . 55 15 23 Average Corruption 14 | . . . 9 1 5 13 . 4 7 19 26 26 23 27 1 . . 31 8 18 Corruption Purged 11 | . . . . 1 . . . 6 4 . . . . . . . . . . . Corruption Blocked . | . . . . . . . . . . . . . . . . . . . . . Effects 528 | . . . 69 13 23 58 . 9 11 88 27 31 24 86 6 . . 38 36 9 Message Errors 120 | . . . 12 2 2 17 . 2 . 18 8 6 5 18 3 . . 13 10 4 Matter Fused 107 | . . . 15 3 2 10 . 2 1 19 5 7 7 19 . . . 8 7 2 Heat Flow Errors 49 | . . . 7 1 4 9 . . . 7 . 2 1 11 1 . . 2 4 . Energy Discharges 72 | . . . 12 1 4 8 . 1 4 13 6 3 6 10 . . . 1 2 1 Parts Rejected 11 | . . . 3 . . 1 . 1 . 1 . . . . . . . 2 3 . Parts Fused 7 | . . . 1 . . . . . 2 . . 3 . 1 . . . . . . Data Loss (minor) 64 | . . . 9 3 3 4 . 1 1 15 2 4 5 9 1 . . 4 3 . Data Loss (major) 20 | . . . . . 2 3 . . . 3 3 2 . 1 1 . . 1 2 2 Misfires 27 | . . . 3 1 1 1 . 1 1 5 3 2 . 5 . . . 1 3 . Alerts 10 | . . . 1 1 2 2 . . . 1 . 1 . 1 . . . 1 . . Misdirections 10 | . . . . . . 1 . . . 1 . 1 . . . . . 5 2 . Weapon Failures 31 | . . . 6 1 3 2 . 1 2 5 . . . 11 . . . . . . Overload Shots 37 | . . . . . 20 . . 17 . . . . . . . . . . . . Effects 5 | . . . . . 3 . . 2 . . . . . . . . . . . . Energy Bleed 2 | . . . . . 1 . . 1 . . . . . . . . . . . . Heat Surge 2 | . . . . . 1 . . 1 . . . . . . . . . . . . Short Circuit 1 | . . . . . 1 . . . . . . . . . . . . . . . Overflow Damage 1140 | . . . 389 143 82 19 . 4 . 58 . 49 . 63 . . . . 194 139 Projectiles 199 | . . . . 14 47 19 . 4 . 14 . 42 . 18 . . . . 41 . Explosions 284 | . . . . 19 35 . . . . 44 . 7 . 45 . . . . 134 . Melee 657 | . . . 389 110 . . . . . . . . . . . . . . 19 139 Knockbacks 10 | . . . 4 5 . 1 . . . . . . . . . . . . . . Impact 8 | . . . 4 3 . 1 . . . . . . . . . . . . . . Kinetic 2 | . . . . 2 . . . . . . . . . . . . . . . . Secondary . | . . . . . . . . . . . . . . . . . . . . . Self-Inflicted Damage 934 | . . . 2 . 163 . . 24 305 91 . 97 . . . . . 171 81 . Shots 37 | . . . 1 . 8 . . . 16 2 . 3 . . . . . 5 2 . Rammed 31 | . . . 1 13 2 5 . 6 . 2 . . . . . . . . 2 . Targets Rammed 39 | . . . 2 15 2 7 . 6 . 2 . . . . . . . . 5 . Kicked 3 | . . . . . . . . . . . . . . . . . . . 3 . Crushed 5 | . . . 1 2 . 2 . . . . . . . . . . . . . . Highest Temperature 1265 | . 16 . 241 480 210 244 . 427 8 688 324 381 . 438 . . . 1265 288 . Average Temperature 132 | . 5 . 70 91 75 102 . 72 4 163 120 151 . 166 . . . 386 102 . Received Heat Transfer 4487 | . 459 6 657 377 517 120 . 45 . 444 . . . 30 78 . . 1409 282 63 Effects 30 | . . . . . . 1 . . . 15 3 1 . 2 . . . 8 . . Shutdowns 4 | . . . . . . . . . . 3 . 1 . . . . . . . . Energy Bleed 3 | . . . . . . . . . . 1 . . . . . . . 2 . . Interference 11 | . . . . . . 1 . . . 6 3 . . 1 . . . . . . Matter Decay 2 | . . . . . . . . . . 1 . . . . . . . 1 . . Short Circuit 1 | . . . . . . . . . . . . . . 1 . . . . . . Damage (minor) 3 | . . . . . . . . . . 1 . . . . . . . 2 . . Damage (major) 3 | . . . . . . . . . . 3 . . . . . . . . . . Damage (core) 3 | . . . . . . . . . . . . . . . . . . 3 . . Siege Activations 3 | . . . . . . . . . . 3 . . . . . . . . . . Total Turns 93 | . . . . . . . . . . 93 . . . . . . . . . . Longest Duration 70 | . . . . . . . . . . 70 . . . . . . . . . . Robots Corrupted 12 | . . . 8 1 . . . . . . . . . . 2 . . 1 . . Combat Hostiles 7 | . . . 5 . . . . . . . . . . . 1 . . 1 . . Parts Fried 25 | . . . 14 4 . . . . . . . . . 5 1 . . . 1 . Impact Corruptions 26 | . . . 21 4 . . . . . . . . . . . . . . 1 . Robots Melted 9 | . . . . 2 . 1 . . . 4 . . . 1 . . . . 1 . Combat Hostiles 9 | . . . . 2 . 1 . . . 4 . . . 1 . . . . 1 . Parts Melted 74 | . . . . 13 12 8 . 8 . 13 . . . 8 5 . . 2 5 . Heat Transferred 26404 | . . . . 4200 4595 1184 . 2566 1395 6341 . 672 . 1998 1122 . . 629 1702 . Parts Sabotaged 2 | . . . . . . . . . . . . . . . . . . . 2 . Parts Stolen . | . . . . . . . . . . . . . . . . . . . . . Parts Stripped . | . . . . . . . . . . . . . . . . . . . . . Power Chain Reactions . | . . . . . . . . . . . . . . . . . . . . . Alert | -11 -10 -10 -8 -7 -7 -7 -7 -5 -5 -5 -5 -5 -5 -4 -4 -3 -2 -2 -1 -1 ------- Run | Yrd Mat Sub Mat Fac Sto Rec Scr Fac Was Fac Upp Upp Zhi Pro Fac Res Res Gar Acc Com Peak Influence 1702 | . 230 . 595 452 888 385 . 239 212 1064 . . . . 443 236 156 607 1702 1241 Initial 1088 | . . . 24 248 205 287 . . 49 148 . . . . 18 232 132 117 352 1088 Average 360 | . 102 . 314 162 625 268 . 102 147 779 . . . . 298 232 137 242 1012 1143 Maximum Alert Level 5 | . 1 . 2 2 3 1 . 1 1 3 . . . . 2 1 . 2 5 4 Low Security (%) 46 | 100 91 . 35 69 5 40 . 92 71 6 . . . . 17 . 100 48 . . Level 1 23 | . 8 . 26 27 8 59 . 7 28 8 . . . . 72 100 . 34 5 . Level 2 13 | . . . 37 3 36 . . . . 18 . . . . 10 . . 16 35 . Level 3 12 | . . . . . 48 . . . . 67 . . . . . . . . 13 15 Level 4 3 | . . . . . . . . . . . . . . . . . . . 41 84 Level 5 . | . . . . . . . . . . . . . . . . . . . 3 . High Security . | . . . . . . . . . . . . . . . . . . . . . Max Security . | . . . . . . . . . . . . . . . . . . . . . Squads Dispatched 53 | . 4 . 5 5 8 . . 5 . 13 . . . . 5 . . . 8 . Investigation 9 | . 3 . 1 1 . . . . . 2 . . . . 1 . . . 1 . Extermination 12 | . . . . 2 2 . . 1 . 4 . . . . 1 . . . 2 . Reinforcement 18 | . 1 . 2 2 3 . . 1 . 4 . . . . 3 . . . 2 . Assault 7 | . . . 2 . 2 . . . . . . . . . . . . . 3 . Garrison 7 | . . . . . 1 . . 3 . 3 . . . . . . . . . . Intercept . | . . . . . . . . . . . . . . . . . . . . . Searches Triggered . | . . . . . . . . . . . . . . . . . . . . . Construction Impeded 3 | . . . . 1 . . . . . 1 . . . . 1 . . . . . Haulers Reinforced 7 | . . . . 1 2 . . . . 1 . . . . 2 . . . 1 . Active Scanning Responses . | . . . . . . . . . . . . . . . . . . . . . Cargo Convoy Interrupts . | . . . . . . . . . . . . . . . . . . . . . Stealth | -11 -10 -10 -8 -7 -7 -7 -7 -5 -5 -5 -5 -5 -5 -4 -4 -3 -2 -2 -1 -1 --------- Run | Yrd Mat Sub Mat Fac Sto Rec Scr Fac Was Fac Upp Upp Zhi Pro Fac Res Res Gar Acc Com Distress Signals 58 | . 1 . 4 . 4 . . . . . . . . 40 2 . . . 4 3 Communications Jammed 164 | . . . . . . . . 88 . 2 . . . . . . . . 74 . Distress Signals 159 | . . . . . . . . 88 . 1 . . . . . . . . 70 . Times Spotted 405 | . 32 4 57 31 40 8 . 21 3 43 . 11 . 15 15 . . 22 90 13 Peak Tracking Total 25 | . 3 5 6 4 8 6 . 4 1 7 . 5 . 4 4 . . 10 25 7 Tactical Retreats 31 | . 5 . 6 2 1 . . . . . . 2 . 1 . . . 4 8 2 Traps | -11 -10 -10 -8 -7 -7 -7 -7 -5 -5 -5 -5 -5 -5 -4 -4 -3 -2 -2 -1 -1 ------- Run | Yrd Mat Sub Mat Fac Sto Rec Scr Fac Was Fac Upp Upp Zhi Pro Fac Res Res Gar Acc Com Traps Triggered 16 | . 2 . . 2 2 . . 3 . 1 . . . . . . . 6 . . Indirectly . | . . . . . . . . . . . . . . . . . . . . . Trap Hack Attempts . | . . . . . . . . . . . . . . . . . . . . . Triggered . | . . . . . . . . . . . . . . . . . . . . . Disarmed . | . . . . . . . . . . . . . . . . . . . . . Reprogrammed . | . . . . . . . . . . . . . . . . . . . . . Reused . | . . . . . . . . . . . . . . . . . . . . . Traps Extracted . | . . . . . . . . . . . . . . . . . . . . . Installed . | . . . . . . . . . . . . . . . . . . . . . Triggered . | . . . . . . . . . . . . . . . . . . . . . Machines | -11 -10 -10 -8 -7 -7 -7 -7 -5 -5 -5 -5 -5 -5 -4 -4 -3 -2 -2 -1 -1 ---------- Run | Yrd Mat Sub Mat Fac Sto Rec Scr Fac Was Fac Upp Upp Zhi Pro Fac Res Res Gar Acc Com Machines Disabled 51 | . . . 4 10 8 . . . . 16 . . . 3 8 . . . 2 . Max in Single Turn 9 | . . . 2 5 1 . . . . 9 . . . 1 3 . . . 1 . Garrison Access 1 | . . . . 1 . . . . . . . . . . . . . . . . Machines Repaired . | . . . . . . . . . . . . . . . . . . . . . Machines Dismantled . | . . . . . . . . . . . . . . . . . . . . . Machines Sabotaged . | . . . . . . . . . . . . . . . . . . . . . Overloaded Fab Kills . | . . . . . . . . . . . . . . . . . . . . . Hacking | -11 -10 -10 -8 -7 -7 -7 -7 -5 -5 -5 -5 -5 -5 -4 -4 -3 -2 -2 -1 -1 --------- Run | Yrd Mat Sub Mat Fac Sto Rec Scr Fac Was Fac Upp Upp Zhi Pro Fac Res Res Gar Acc Com Machines Accessed 62 | . 6 . 7 7 5 9 3 5 . 4 . . 4 . 3 . 1 1 6 1 Terminals 44 | . 5 . 6 4 4 6 . 4 . 4 . . . . 3 . . 1 6 1 Fabricators 3 | . . . . 2 . . . 1 . . . . . . . . . . . . Repair Stations 1 | . . . 1 . . . . . . . . . . . . . . . . . Recycling Units 4 | . 1 . . . . 3 . . . . . . . . . . . . . . Scanalyzers . | . . . . . . . . . . . . . . . . . . . . . Garrison Access 3 | . . . . 1 1 . . . . . . . . . . . 1 . . . Total Hacks 152 | . 18 . 21 17 9 15 13 10 . 9 . . 17 . 8 . 2 3 9 1 Successful 84 | . 11 . 6 9 3 10 13 3 . 4 . . 17 . 3 . 1 1 3 . Failed 68 | . 7 . 15 8 6 5 . 7 . 5 . . . . 5 . 1 2 6 1 Catastrophic 20 | . 3 . 3 1 1 1 . 3 . 1 . . . . 2 . 1 . 3 1 Database Lockouts . | . . . . . . . . . . . . . . . . . . . . . Manual 76 | . 16 . 12 3 7 15 . 5 . 5 . . . . 6 . 1 3 2 1 Terminals 102 | . 16 . 17 11 8 12 . 8 . 9 . . . . 8 . . 3 9 1 Fabricators 7 | . . . . 5 . . . 2 . . . . . . . . . . . . Repair Stations 4 | . . . 4 . . . . . . . . . . . . . . . . . Recycling Units 5 | . 2 . . . . 3 . . . . . . . . . . . . . . Scanalyzers . | . . . . . . . . . . . . . . . . . . . . . Garrison Access 4 | . . . . 1 1 . . . . . . . . . . . 2 . . . Terminal Hacks 54 | . 4 . 4 5 3 1 13 . . 3 . . 17 . 1 . . . 3 . Record 19 | . . . 1 . . . 13 . . . . . 5 . . . . . . . Part Schematic 4 | . . . . . . . . . . . . . 4 . . . . . . . Robot Schematic 1 | . 1 . . . . . . . . . . . . . . . . . . . Robot Analysis 6 | . 2 . . . . . . . . . . . 4 . . . . . . . Prototype ID Bank 8 | . 1 . 2 . . 1 . . . . . . 4 . . . . . . . Open Door 4 | . . . . . 1 . . . . . . . . . . . . . 3 . Branch Access Points 3 | . . . 1 1 . . . . . 1 . . . . . . . . . . Alert Level 4 | . . . . 2 1 . . . . . . . . . 1 . . . . . Unreport Threat 3 | . . . . 2 1 . . . . . . . . . . . . . . . Recall Reinforcements 1 | . . . . . . . . . . 1 . . . . . . . . . . Hauler Manifests 1 | . . . . . . . . . . 1 . . . . . . . . . . Fabricator Hacks 3 | . . . . 2 . . . 1 . . . . . . . . . . . . Network Status 2 | . . . . 1 . . . 1 . . . . . . . . . . . . Build 1 | . . . . 1 . . . . . . . . . . . . . . . . Repair Station Hacks 2 | . . . 2 . . . . . . . . . . . . . . . . . Scan Component 1 | . . . 1 . . . . . . . . . . . . . . . . . Repair 1 | . . . 1 . . . . . . . . . . . . . . . . . Recycling Unit Hacks . | . . . . . . . . . . . . . . . . . . . . . Scanalyzer . | . . . . . . . . . . . . . . . . . . . . . Garrison Access Hacks 2 | . . . . 1 . . . . . . . . . . . . 1 . . . Unlock Access 1 | . . . . . . . . . . . . . . . . . 1 . . . Seal Access 1 | . . . . 1 . . . . . . . . . . . . . . . . Unauthorized Hacks 23 | . 7 . . 1 . 9 . 2 . 1 . . . . 2 . . 1 . . Terminals 18 | . 7 . . . . 6 . 1 . 1 . . . . 2 . . 1 . . Botnet 7 | . 2 . . . . 1 . 1 . 1 . . . . 2 . . . . . Skim 10 | . 5 . . . . 5 . . . . . . . . . . . . . . Override 1 | . . . . . . . . . . . . . . . . . . 1 . . Fabricators 2 | . . . . 1 . . . 1 . . . . . . . . . . . . Haulers 2 | . . . . 1 . . . 1 . . . . . . . . . . . . Repair Stations . | . . . . . . . . . . . . . . . . . . . . . Recycling Units 3 | . . . . . . 3 . . . . . . . . . . . . . . Tunnel 3 | . . . . . . 3 . . . . . . . . . . . . . . Scanalyzers . | . . . . . . . . . . . . . . . . . . . . . Garrison Access . | . . . . . . . . . . . . . . . . . . . . . Data Cores Recovered 2 | . . . . . . . . . . 2 . . . . . . . . . . Used . | . . . . . . . . . . . . . . . . . . . . . Hacking Detections 43 | . 6 . 5 4 4 3 . 5 . 4 . . . . 3 . 1 1 6 1 Full Trace Events 8 | . 1 . 1 1 . 1 . . . 2 . . . . 1 . . . 1 . Feedback Events 2 | . . . . . . . . . . 1 . . . . 1 . . . . . Corruption 2 | . . . . . . . . . . 1 . . . . 1 . . . . . Feedback Blocked . | . . . . . . . . . . . . . . . . . . . . . Robot Schematics Acquired 1 | . 1 . . . . . . . . . . . . . . . . . . . Robots Built . | . . . . . . . . . . . . . . . . . . . . . Authchips . | . . . . . . . . . . . . . . . . . . . . . Time 134 | . . . . 134 . . . . . . . . . . . . . . . . Total Robot Build Rating . | . . . . . . . . . . . . . . . . . . . . . Part Schematics Acquired 4 | . . . . . . . . . . . . . 4 . . . . . . . Parts Built . | . . . . . . . . . . . . . . . . . . . . . Authchips . | . . . . . . . . . . . . . . . . . . . . . Time . | . . . . . . . . . . . . . . . . . . . . . Total Part Build Rating . | . . . . . . . . . . . . . . . . . . . . . Parts Repaired 1 | . . . 1 . . . . . . . . . . . . . . . . . Time 32 | . . . 32 . . . . . . . . . . . . . . . . . Parts Recycled . | . . . . . . . . . . . . . . . . . . . . . Recycled Matter . | . . . . . . . . . . . . . . . . . . . . . Retrieved Matter . | . . . . . . . . . . . . . . . . . . . . . Retrieved Components . | . . . . . . . . . . . . . . . . . . . . . Parts Scanalyzed . | . . . . . . . . . . . . . . . . . . . . . Part Schematics Acquired . | . . . . . . . . . . . . . . . . . . . . . Parts Damaged . | . . . . . . . . . . . . . . . . . . . . . Bothacking | -11 -10 -10 -8 -7 -7 -7 -7 -5 -5 -5 -5 -5 -5 -4 -4 -3 -2 -2 -1 -1 ------------ Run | Yrd Mat Sub Mat Fac Sto Rec Scr Fac Was Fac Upp Upp Zhi Pro Fac Res Res Gar Acc Com Used RIF Installer 1 | . . . . . . . . . . . . . . . . . . 1 . . Robots Hacked . | . . . . . . . . . . . . . . . . . . . . . Non-combat . | . . . . . . . . . . . . . . . . . . . . . Combat . | . . . . . . . . . . . . . . . . . . . . . Robot Hacks Applied . | . . . . . . . . . . . . . . . . . . . . . Relay Couplers Released . | . . . . . . . . . . . . . . . . . . . . . Fabnet Peak Effective % . | . . . . . . . . . . . . . . . . . . . . . Robots Rewired 7 | . . . . . . 5 . . . . . . . 2 . . . . . . Allies Hacked . | . . . . . . . . . . . . . . . . . . . . . Hacks Repelled . | . . . . . . . . . . . . . . . . . . . . . Allies | -11 -10 -10 -8 -7 -7 -7 -7 -5 -5 -5 -5 -5 -5 -4 -4 -3 -2 -2 -1 -1 -------- Run | Yrd Mat Sub Mat Fac Sto Rec Scr Fac Was Fac Upp Upp Zhi Pro Fac Res Res Gar Acc Com Total Allies 10 | . . . . . . 5 . 3 . . . . . 2 . . . . . . Largest Group 5 | . . . . . . 5 5 5 . . . . . 2 2 . . . . . Highest-Rated Group 144 | . . . . . . 144 144 144 . . . . . 98 98 . . . . . Highest-Rated Ally 49 | . . . . . . 32 32 32 . . . . . 49 49 . . . . . Total Orders 4 | . . . . . . . . 1 . . . 2 . . 1 . . . . . ROAM 2 | . . . . . . . . 1 . . . . . . 1 . . . . . EXPLORE 2 | . . . . . . . . . . . . 2 . . . . . . . . Ally Attacks 65 | . . . . . . . . 54 . . . . . 5 6 . . . . . Total Damage 2241 | . . . . . . . . 945 . . . . . 250 1046 . . . . . Kills 21 | . . . . . . . . 9 . . . . . 1 11 . . . . . Allies Corrupted . | . . . . . . . . . . . . . . . . . . . . . Allies Melted . | . . . . . . . . . . . . . . . . . . . . . Intel | -11 -10 -10 -8 -7 -7 -7 -7 -5 -5 -5 -5 -5 -5 -4 -4 -3 -2 -2 -1 -1 ------- Run | Yrd Mat Sub Mat Fac Sto Rec Scr Fac Was Fac Upp Upp Zhi Pro Fac Res Res Gar Acc Com Robot Analysis Total 6 | . 2 . . . . . . . . . . . 4 . . . . . . . Derelict Logs Recovered . | . . . . . . . . . . . . . . . . . . . . . Drone Launches 2 | . . . . . . . . . . . . 2 . . . . . . . . Drone Recoveries . | . . . . . . . . . . . . . . . . . . . . . Exploration | -11 -10 -10 -8 -7 -7 -7 -7 -5 -5 -5 -5 -5 -5 -4 -4 -3 -2 -2 -1 -1 ------------- Run | Yrd Mat Sub Mat Fac Sto Rec Scr Fac Was Fac Upp Upp Zhi Pro Fac Res Res Gar Acc Com Turns Passed 18729 | 81 1894 134 2046 2218 834 1301 906 1236 289 1768 539 623 486 1537 744 48 13 908 919 205 Spaces Moved 8525 | 49 800 132 933 1137 337 488 553 586 107 668 216 224 155 482 438 27 9 391 620 173 Core 315 | 6 1 . 13 . . . . . . . . . . . . . . . 141 154 Treads 5530 | 43 613 . 550 1137 337 488 553 254 74 668 216 224 94 279 . . . . . . Legs 1674 | . . . 66 . . . . . . . . . 61 203 438 27 9 391 479 . Wheels 805 | . 4 132 304 . . . . 332 33 . . . . . . . . . . . Hover 189 | . 182 . . . . . . . . . . . . . . . . . . 7 Flight 12 | . . . . . . . . . . . . . . . . . . . . 12 Fastest Speed 40 | 50 110 80 80 160 160 163 163 160 160 160 245 245 246 190 120 120 120 116 50 40 Average Speed 171 | 146 196 100 155 160 160 165 163 179 187 206 245 245 306 225 131 120 120 167 117 52 Slowest Speed 750 | 160 450 110 750 320 163 245 163 242 243 325 245 246 400 400 190 120 120 190 188 250 Overloaded Moves . | . . . . . . . . . . . . . . . . . . . . . Propulsion Burnouts . | . . . . . . . . . . . . . . . . . . . . . Robots Hopped 2 | . . . . . . . . . . . . . . . . . . . . 2 Cave-ins Triggered 1 | . . . 1 . . . . . . . . . . . . . . . . . Teleports 1 | . . . . . . . . . . . . . . . . . . . 1 . Exploration Rate (%) 42 | 3 94 16 48 34 83 88 46 21 85 25 46 86 61 64 12 1 1 41 24 10 Regions Visited 20 Branch Regions 9 Pre-discovered Areas 12 | . 1 1 . . . 5 2 . . . . . 3 . . . . . . . Known Exits Taken 7 | . 1 1 . 1 . . 1 . . 1 . . . 1 . . 1 . . . Unknown Exits Taken 10 | 1 . . 1 . 1 1 . . . . 1 1 1 . 1 1 . . 1 . Scrap Searched 5 | . . . . . . . . . . . 1 3 . 1 . . . . . . Spaces Dug 41 | . . . 8 . 4 . . 3 . 8 4 2 . 5 3 2 . . 1 1 Terrain Destroyed 921 | . 14 . 21 49 155 11 . 8 177 144 9 105 . 71 22 2 . 50 82 1 Melee 12 | . . . 8 . . . . . . . . . . 1 . 2 . . . 1 Projectile 175 | . . . . 6 42 11 . 8 . 24 9 12 . 16 22 . . 8 17 . AOE 734 | . 14 . 13 43 113 . . . 177 120 . 93 . 54 . . . 42 65 . Terrain Rammed . | . . . . . . . . . . . . . . . . . . . . . Walls Destroyed . | . . . . . . . . . . . . . . . . . . . . . Machines Disabled . | . . . . . . . . . . . . . . . . . . . . . Actions | -11 -10 -10 -8 -7 -7 -7 -7 -5 -5 -5 -5 -5 -5 -4 -4 -3 -2 -2 -1 -1 --------- Run | Yrd Mat Sub Mat Fac Sto Rec Scr Fac Was Fac Upp Upp Zhi Pro Fac Res Res Gar Acc Com Total 11101 | 55 945 134 1276 1374 484 943 558 691 143 863 220 273 171 827 514 33 11 576 783 227 Wait 1073 | . 26 . 131 72 41 369 4 29 4 52 1 16 . 248 5 . . 53 12 10 Move 8503 | 48 799 131 932 1136 336 487 552 586 106 667 215 223 154 481 437 26 8 390 619 170 Hop 1 | . . . . . . . . . . . . . . . . . . . . 1 Pick Up 109 | 1 8 1 13 11 5 1 2 12 2 12 . 3 4 2 9 1 . 17 5 . Fast Attach 125 | 6 3 . 20 14 9 1 . 8 2 10 . 3 4 3 5 . . 13 15 9 Attach 83 | . 3 . 1 3 6 3 . 5 2 11 . 4 2 9 3 1 3 11 16 . Detach 40 | . 1 . 1 4 3 . . 4 2 2 . 2 2 7 2 . . 5 5 . Swap 109 | . 6 . 15 21 7 2 . 6 1 13 1 1 1 11 4 . . 9 11 . Drop 105 | . 1 2 12 26 9 1 . 4 7 5 . 5 4 2 6 . . 7 13 1 Fire 712 | . 98 . 86 69 66 15 . 31 17 89 3 16 . 53 43 3 . 41 82 . Melee 105 | . . . 63 3 . . . . . . . . . 1 . 2 . . . 36 Ram 5 | . . . . . . . . 3 . . . . . . . . . . 2 . Kick 3 | . . . . . . . . . . . . . . . . . . . 3 . Crush 31 | . . . 2 15 2 7 . 3 . 2 . . . . . . . . . . Escape Stasis 30 | . . . . . . . . . . . . . . . . . . 30 . . Rewire 67 | . . . . . . 57 . . . . . . . 10 . . . . . . Trap . | . . . . . . . . . . . . . . . . . . . . . Miscellaneous . | . . . . . . . . . . . . . . . . . . . . . Route ------- -11/Scrapyard -10/Materials (discovered 6 exits: [*Mat x3] / *Min x2 / *Sub) -10/Subcaves (discovered 2 exits: *Mat x2) -8/Materials -7/Factory (discovered 5 exits: [*Fac] / *Sto x2 / Low x2) -7/Storage (discovered 2 exits: [*Fac] / *Rec) -7/Recycling (discovered 2 exits: *Fac / *Scr) -7/Scraptown (discovered 2 exits: *Fac x2) -5/Factory (discovered 3 exits: Fac x2 / Upp) -5/Waste -5/Factory (discovered 2 exits: *Upp x2) -5/Upper Caves -5/Upper Caves (discovered 2 exits: *Fac / *Zhi) -5/Zhirov -4/Proximity Caves -4/Factory (discovered 2 exits: *Res / [*Upp]) -3/Research -2/Research -2/Garrison (discovered 3 exits: *Acc x3) -1/Access -1/Command History --------- Turn | Location | Event 11 | -11/Scrapyard | Discovered new exit (range 14) 82 | -11/Scrapyard | Entered Materials 311 | -10/Materials | Build established: Mutant 528 | -10/Materials | Discovered new exit (range 13) 531 | -10/Materials | Discovered new exit (range 12) 694 | -10/Materials | Discovered new exit (range 8) 932 | -10/Materials | Discovered new exit (range 7) 1045 | -10/Materials | Identified exit to Mines 1045 | -10/Materials | Identified exit to Subcaves 1082 | -10/Materials | Derelicts attacked the area 1165 | -10/Materials | Learned Storage stockpile data 1239 | -10/Materials | Learned location of 2 exits from Mines 1277 | -10/Materials | Learned location of Mines (-8) 1301 | -10/Materials | Learned 4 Recycling zone layouts 1339 | -10/Materials | Core integrity fell below 50% 1976 | -10/Materials | Entered Subcaves 1977 | -10/Subcaves | Identified exit to Materials 1994 | -10/Subcaves | Shifting Twisted Machinery released Mak. Laser 2031 | -10/Subcaves | Ambushed by Subdwellers from Twisted Machinery 2099 | -10/Subcaves | Learned location of Zion (-7) 2099 | -10/Subcaves | Met a Zionite searching for "candidates" 2110 | -10/Subcaves | Entered Materials 2110 | -8/Materials | Evolved 4 slots: Propulsion x1, Utility x3 2286 | -8/Materials | Crushed by falling debris 2317 | -8/Materials | Lost 5 parts (1n3u1w) 2690 | -8/Materials | Core integrity fell below 50% 2750 | -8/Materials | System corruption reached 10% 3230 | -8/Materials | Build established: Scavenger-Mutant 3272 | -8/Materials | Discovered new exit (range 15) 3941 | -8/Materials | Repaired Shield Generator 4110 | -8/Materials | First assault squad dispatched 4156 | -8/Materials | Entered Factory 4156 | -7/Factory | Evolved 2 slots: Utility x1, Weapon x1 4157 | -7/Factory | Identified exit to Storage 4457 | -7/Factory | Build established: Scavenger-Tank 4966 | -7/Factory | Build established: Mutant 5328 | -7/Factory | Build established: Tank 5398 | -7/Factory | Discovered new exit (range 7) 5751 | -7/Factory | Identified exit to Lower Caves 5861 | -7/Factory | Found Prototype Launcher 6147 | -7/Factory | Identified Rocket Array 6374 | -7/Factory | Entered Storage 6426 | -7/Storage | Garrison activated, responded to threat 6479 | -7/Storage | Destroyed 9 combat bots 6485 | -7/Storage | Lost 3 parts (2u1w) 6755 | -7/Storage | Build established: Gunner 6774 | -7/Storage | First assault squad dispatched 6871 | -7/Storage | Discovered new exit (range 5) 6905 | -7/Storage | Met 01-MTF 7005 | -7/Storage | System corruption reached 10% 7040 | -7/Storage | Destroyed 01-MTF 7065 | -7/Storage | Lost 5 parts (1p2n1u1w) 7205 | -7/Storage | Used back door to open Recycling access 7205 | -7/Storage | Discovered new exit (range 3) 7208 | -7/Storage | Entered Recycling 7736 | -7/Recycling | Lost 3 parts (1n2w) 7949 | -7/Recycling | Scanned before Scraplab entrance 7991 | -7/Recycling | Discovered new exit (range 16) 8109 | -7/Recycling | Learned 8 Factory zone layouts 8129 | -7/Recycling | Build established: Commander-Gunner 8169 | -7/Recycling | Learned location of Warlord (-4) 8221 | -7/Recycling | Learned 4 Extension zone layouts 8292 | -7/Recycling | Learned location of 1 exit from Extension 8311 | -7/Recycling | Learned location of Extension (-6) 8342 | -7/Recycling | Learned 4 Factory zone layouts 8385 | -7/Recycling | Learned location of 1 exit from Proximity Caves 8474 | -7/Recycling | Entered Scraplab 8487 | -7/Recycling | Discovered new exit (range 4) 8509 | -7/Recycling | Entered Scraptown 8509 | -7/Scraptown | Accompanied by 5 allies 8509 | -7/Scraptown | System corruption cleaned by C-Scrubber 8510 | -7/Scraptown | Identified exit to Factory 8589 | -7/Scraptown | Visited TADAMA 8611 | -7/Scraptown | Visited Spacefarers 8655 | -7/Scraptown | Visited UFD Registry 8655 | -7/Scraptown | Registered with UFD as "Protonbucket" 8682 | -7/Scraptown | Visited Cave Peace 8730 | -7/Scraptown | Visited Junk Repository 8772 | -7/Scraptown | Visited Cyclists 8787 | -7/Scraptown | Entered Cyclist Reading Room 8886 | -7/Scraptown | Visited Science Guys 8912 | -7/Scraptown | Visited Abandonware Association 8924 | -7/Scraptown | Learned abandonware demo "OVRCLOCK.EXE" 8930 | -7/Scraptown | Learned abandonware demo "ERRANTS.EXE" 8930 | -7/Scraptown | Learned abandonware demo "KABOOM.EXE" 8970 | -7/Scraptown | Visited Junk Repository 8994 | -7/Scraptown | Visited LU-1G1's Boring Crew 9022 | -7/Scraptown | Visited Analyses Database 9072 | -7/Scraptown | Visited Curators Association 9131 | -7/Scraptown | Visited Infowarlord's Domain 9157 | -7/Scraptown | Visited Botcube Research 9186 | -7/Scraptown | Visited Research Penetration Think Tank 9291 | -7/Scraptown | Found Exp. Terrain Scanner 9381 | -7/Scraptown | Found Scrap Suit 9415 | -7/Scraptown | Entered Factory 9415 | -5/Factory | Accompanied by 5 allies 9415 | -5/Factory | Evolved 4 slots: Power x1, Propulsion x1, Utility x2 9416 | -5/Factory | Identified exit to Factory 9417 | -5/Factory | Identified exit to Upper Caves 9440 | -5/Factory | Garrison activated, responded to threat 9660 | -5/Factory | Allied Derelicts emerged from ambush trap array 9753 | -5/Factory | Build established: Gunner 10240 | -5/Factory | Lost 3 allies 10651 | -5/Factory | Sucked down chute 10651 | -5/Factory | Entered Waste 10666 | -5/Waste | EMP discharged 10682 | -5/Waste | Spotted C-40 Crusher 10701 | -5/Waste | Crushed by Compactor (0 parts destroyed, 1 dropped) 10701 | -5/Waste | Destroyed C-40 Crusher 10714 | -5/Waste | Spotted C-40 Crusher 10733 | -5/Waste | Destroyed C-40 Crusher 10736 | -5/Waste | Spotted C-40 Crusher 10739 | -5/Waste | Destroyed C-40 Crusher 10766 | -5/Waste | EMP discharged 10802 | -5/Waste | Spotted C-40 Crusher 10804 | -5/Waste | Destroyed C-40 Crusher 10816 | -5/Waste | Spotted C-40 Crusher 10819 | -5/Waste | Destroyed C-40 Crusher 10850 | -5/Waste | Spotted C-40 Crusher 10866 | -5/Waste | EMP discharged 10866 | -5/Waste | System corruption reached 10% 10868 | -5/Waste | Destroyed C-40 Crusher 10926 | -5/Waste | Discovered new exit (range 10) 10940 | -5/Waste | Entered Factory 11060 | -5/Factory | Build established: Scavenger-Tank 11372 | -5/Factory | Spotted B-75 Beast 11595 | -5/Factory | Destroyed 9 combat bots 11600 | -5/Factory | Lost 7 parts (1n3u3w) 11738 | -5/Factory | Garrison activated, responded to threat 12179 | -5/Factory | Build established: Scavenger-Gunner 12708 | -5/Factory | Entered Upper Caves 13183 | -5/Upper Caves | Discovered new exit (range 15) 13247 | -5/Upper Caves | Entered another Upper Caves area 13329 | -5/Upper Caves | Discovered exit to Factory (range 70) 13853 | -5/Upper Caves | Discovered new exit (range 7) 13870 | -5/Upper Caves | Entered Zhirov 13873 | -5/Zhirov | Discovered new exit (range 3) 13918 | -5/Zhirov | Met Zhirov 13989 | -5/Zhirov | Learned location of Quarantine (-3) 13989 | -5/Zhirov | Learned location of Testing (-2) 13989 | -5/Zhirov | Learned location of Command (-1) 14001 | -5/Zhirov | Zhirov requested help retrieving the SGEMP Prototype 14039 | -5/Zhirov | Found Alien Artifact 14039 | -5/Zhirov | Identified Integrated Reactor 14039 | -5/Zhirov | Installed Integrated Reactor, increased core energy generation (+10) 14068 | -5/Zhirov | Found Alien Artifact 14173 | -5/Zhirov | Build established: Mutant 14356 | -5/Zhirov | Entered Proximity Caves 14777 | -4/Proximity Caves | Build established: Gunner 15139 | -4/Proximity Caves | Received a Behemoth hack from an annoying Tinkerer 15250 | -4/Proximity Caves | Build established: Mutant 15505 | -4/Proximity Caves | System corruption reached 30% 15533 | -4/Proximity Caves | Core integrity fell below 50% 15643 | -4/Proximity Caves | Found Prototype Launcher 15643 | -4/Proximity Caves | Identified Scatter Rocket Array 15647 | -4/Proximity Caves | Found Prototype Launcher 15647 | -4/Proximity Caves | Identified Mni. Smartbomb Launcher 15661 | -4/Proximity Caves | Found Rocket Array 15670 | -4/Proximity Caves | Build established: Scavenger-Gunner 15893 | -4/Proximity Caves | Entered Factory 15893 | -4/Factory | Accompanied by 2 allies 15893 | -4/Factory | Evolved 2 slots: Propulsion x2 16272 | -4/Factory | Found Exp. ECM Suite 16311 | -4/Factory | Build established: Gunner 16560 | -4/Factory | Discovered new exit (range 29) 16565 | -4/Factory | Discovered new exit (range 26) 16637 | -4/Factory | Entered Research 16637 | -3/Research | Evolved 2 slots: Utility x1, Weapon x1 16639 | -3/Research | Discovered new exit (range 21) 16685 | -3/Research | Entered another Research area 16685 | -2/Research | Evolved 2 slots: Power x1, Utility x1 16695 | -2/Research | Identified exit to Garrison 16698 | -2/Research | Entered Garrison 16753 | -2/Garrison | Installed Relay Interface Framework 16784 | -2/Garrison | Triggered checkpoint 16984 | -2/Garrison | System corruption reached 10% 17000 | -2/Garrison | Lost 3 parts (1p2u) 17004 | -2/Garrison | Build established: Scavenger-Tank 17057 | -2/Garrison | Spotted B-90 Cyclops 17161 | -2/Garrison | Core integrity fell below 50% 17173 | -2/Garrison | Lost 8 parts (1p1n4u2w) 17255 | -2/Garrison | Destroyed B-90 Cyclops 17273 | -2/Garrison | System corruption reached 30% 17287 | -2/Garrison | Found Corrupted Quantum Capacitor 17328 | -2/Garrison | Triggered checkpoint 17519 | -2/Garrison | Spotted B-90 Cyclops 17548 | -2/Garrison | Spotted B-90 Cyclops 17548 | -2/Garrison | Identified exit to Access 17564 | -2/Garrison | Triggered checkpoint 17588 | -2/Garrison | Triggered checkpoint 17606 | -2/Garrison | Entered Access 17606 | -1/Access | Evolved 2 slots: Propulsion x1, Utility x1 17630 | -1/Access | Lost 7 parts (2p1n3u1w) 17810 | -1/Access | Build established: Scavenger-Gunner 17882 | -1/Access | First assault squad dispatched 17920 | -1/Access | System corruption reached 10% 17941 | -1/Access | Spotted B-99 Colossus 17946 | -1/Access | Identified Transdimensional Reconstructor 17946 | -1/Access | Warped through subspace 18022 | -1/Access | Destroyed 12 combat bots 18109 | -1/Access | Destroyed 7 combat bots 18234 | -1/Access | Build established: Scavenger-Mutant 18356 | -1/Access | Lost 5 parts (2p3u) 18457 | -1/Access | Core integrity fell below 50% 18498 | -1/Access | Lost 11 parts (1p6n3u1w) 18522 | -1/Access | Discovered new exit (range 7) 18525 | -1/Access | Entered Command 18716 | -1/Command | Spotted B-99 Colossus 18720 | -1/Command | Core integrity fell below 20% 18730 | -1/Command | Destroyed by Y-72 Warden with Quantum Rifle Last Messages --------------- 18719_ Penetrated by Slug. 18719_ Slug penetrates Wall. 18719_ K-01 Serf collects debris. 18719_ R-10 Processor collects Xenon Bombardment Thruster. 18721_ Lgt. Antimatter Reactor destroyed. 18721_ Slug penetrates Wall. 18722_ Penetrated by Slug. 18722_ Slug penetrates Wall. 18722_ Slug penetrates R-10 Processor. 18722_ K-01 Serf collects debris. 18723_ Acquired Xenon Bombardment Thruster. 18723_ Penetrated by Slug. 18724_ K-01 Serf collects debris. 18724_ R-10 Processor collects Adv. Heat Sink. 18724_ Slug penetrates Wall. 18725_ K-01 Serf collects debris. 18726_ Xenon Bombardment Thruster destroyed. 18727_ Penetrated by Slug. 18728_ K-01 Serf collects debris. 18729_ Penetrated by Slug. Map ----- +----------------------------------------------------+ | ????????????????????????????????????????????# | | ?????????????????????????? ???????????????# | | ???????????????????????? # ???????????????# | | ????????????????????? ??????????????# | | ??????????????????? ??????????????# | | ????????????????? ??????????????# | | ????????????????? ??????????????# | | ????????????????? ################ | | ?????????????????? = ## ## | | ???????????????????# %= ## ## | | ???????????????????# ! ## ## | | ???????????????????# ## ! ## | | ???????????????????# ## #####+# | | ???????????????????# ## + | | ????????????? ##### ## "" # | | ????????????? ^ ## """" # ##### | | ????????????# ^ ##[ "" # #???? | | ????????????# ^ %%##[= "" + #???? | | ????????????????#### [ %/%%* # #???? | | ???????????????????#k Y###[! # ##### | | ???????????????????# k ############+### !*% | | ???????????????????# Y;######### ## ##+## | | ???????????????????# ## ## | | ???????????????????# ! ## ## | | ???????????????????# % ######???????# ## | | ???????????????????# @ #?????###+####+## | | ???????????????????# #??# #! | | ???????????????????# T# # | | ???????????????????# ""## # | | ???????????????????# #### "" # | | ???????????????????# #???"""" # | | ???????????????????# #???"""" !! #! | | ???????????????????# #????"" !! # | | ???????????????????# w#???? ] # | | ???????????????????# #??? # | | ???????????????????# #??# "" "" #### | | ??????????????????? #??# ""R"" #??? | | ??????????????????? hk #??# ??"""" #??? | | ??????????????????### w h#????###??????###??? | | ????????????????????? ???????????????????? | | ??????????????????????? ?????????????????????? | | ?????????????????????????????????????????????????? | | ?????????????????????????????????????????????????? | | ?????????????????????????????????????????????????? | | ?????????????????????????????????????????????????? | | ?????????????????????????????????????????????????? | | ?????????????????????????????????????????????????? | | ?????????????????????????????????????????????????? | | ?????????????????????????????????????????????????? | | ?????????????????????????????????????????????????? | +----------------------------------------------------+ Best States ------------- Heat Dissipation 142 Coolant Potential 100 Energy Generation 74 Energy Capacity 665 Matter Stores 300 Matter Capacity 300 Sight Range 16 Robot Scan Range 16 Terrain Scan Range 30 Terrain Scan Density 210 Jamming Range 16 Power Amplification 30 Base Temperature (-) 150 Corruption Containment 8 Armor Coverage 900 Resistance: KI 25 Resistance: TH 10 Resistance: EM 20 Point Defense Rating 80 Phase Shifting 15 Evasion (%) 70 Targeting Accuracy 8 Melee Accuracy 20 Target Analysis 8 Core Analysis 6 Recoil Reduction 4 Offensive Hacking 20 Defensive Hacking 10 Authchip Count 1 Item Schematics ----------------- Assault Drone Bay | -5/Zhirov | Free Exp. Heat Sink | -5/Zhirov | Free Exp. Optical Array | -5/Zhirov | Free Imp. Arc Thrower | -5/Zhirov | Free Robot Schematics ------------------ M-13 Machinist | -10/Materials | Hacked Fabricated ------------ Nothing Alien Tech Used ----------------- Integrated Reactor Transdimensional Reconstructor Achievements -------------- None Challenges ------------ None Game ------ Seed PlatingShadePick Manual? 0 Play Time 01:47:44 Cumulative 556.2 hours Start 2024.12.19 @ 19:51:28 End 2024.12.22 @ 14:41:16 Sessions 5 Manual Loads 0 Difficulty Rogue Special Mode None Game No. 321 Rogue 321 Adventurer 0 Explorer 0 Win Type - Total 43 Types 29/3/5/1/1/0/2/1/1 Lore% 87 Gallery% 86 Achievement% 86 Wizard Run 0 Options --------- Layout 0 ASCII 0 Keyboard 1 Movement Numpad Keybinds 0 Fullscreen 2 Font 18/SmallcapsGlow Map View 76x50 Zoom Use 0% Tactical HUD 1 Map Filters NONE Filters NONE Steam 1 RUN: 228bbdc0-0ace-47ae-b9d6-60d8e8e2a7c3